bitfinex/quotes_ETHUSD_20250914
["timestamp","ask_amount","ask_price","bid_price","bid_amount"]
[1757824091944,3.682,4654.9,4654.8,1.2343]
[1757824094054,3.682,4654.9,4654.8,0.7771]
[1757824094267,3.682,4654.9,4654.8,1.2343]
[1757824102311,0.002,4654.9,4654.8,3.48982001]
[1757824102973,0.002,4654.9,4654.8,3.03262001]
[1757824103173,0.002,4654.9,4654.8,3.50732001]
[1757824103364,0.002,4654.9,4654.8,3.03262001]
[1757824103570,0.002,4654.9,4654.8,1.359]
[1757824103766,0.002,4654.9,4654.8,0.8769]
[1757824104723,0.002,4654.9,4654.8,1.3671]
[1757824105706,0.002,4654.9,4654.8,3.51542001]
[1757824107691,0.002,4654.9,4654.8,1.3671]
[1757824107914,0.002,4654.9,4654.8,3.04072001]
[1757824108074,0.002,4654.9,4654.8,3.51542001]
[1757824108275,0.002,4654.9,4654.8,0.1082]
[1757824108475,0.002,4654.9,4654.8,0.8843]
[1757824109705,0.002,4654.9,4654.8,3.03262001]
[1757824109912,0.002,4654.9,4654.8,0.8843]
[1757824113822,0.002,4654.9,4654.8,3.52282001]
[1757824116213,0.002,4654.9,4654.8,1.3745]
[1757824116520,0.002,4654.9,4654.8,0.8843]
[1757824117521,1.2408,4654.9,4654.8,0.001]
[1757824118312,0.7772,4654.9,4654.8,0.001]
[1757824119292,0.2959,4654.9,4654.8,0.001]
[1757824119622,0.002,4654.9,4654.8,0.001]
[1757824119792,0.2959,4654.9,4654.8,0.001]
[1757824120401,0.002,4654.9,4654.8,0.001]
[1757824122594,0.002,4654.9,4654.8,0.3024]
[1757824129417,0.002,4654.9,4654.8,2.90382001]
[1757824129631,0.002,4654.9,4654.8,3.37542001]
[1757824129832,0.002,4654.9,4654.8,3.01102001]
[1757824130233,0.002,4654.9,4654.8,3.48262001]
[1757824131233,0.002,4654.9,4654.8,2.55792001]
[1757824131425,0.002,4654.9,4654.8,3.01102001]
[1757824131949,0.002,4654.9,4654.8,3.47412001]
[1757824132355,0.002,4654.9,4654.8,3.49560321]
[1757824132551,0.002,4654.9,4654.8,7.14012001]
[1757824134257,0.002,4654.9,4654.8,3.47412001]
[1757824134456,0.002,4654.9,4654.8,7.14012001]
[1757824137162,0.002,4654.9,4654.8,3.02102001]
[1757824137460,0.002,4654.9,4654.8,7.14462001]
[1757824141464,0.002,4654.9,4654.8,6.22092001]
[1757824141872,0.002,4654.9,4654.8,3.01652001]
[1757824142258,0.002,4654.9,4654.8,7.14262001]
[1757824143663,0.002,4654.9,4654.8,11.31660132]
[1757824144060,0.002,4655.4,4655.3,5.94008927]
[1757824144361,0.002,4655.4,4655.3,9.87518749]
[1757824144538,0.002,4655.4,4655.3,11.11208749]
[1757824144746,0.002,4655.4,4655.3,11.30519824]
[1757824145933,0.002,4655.4,4655.3,41.30519824]
[1757824146266,0.4754,4657.4,4656.7,2.14744346]
[1757824146574,0.4399,4657.2,4656.7,5.80944346]
[1757824146772,0.3457852,4656.8,4656.7,2.14744346]
[1757824146930,0.3457852,4656.8,4656.7,5.91564346]
[1757824147126,0.3457852,4656.8,4656.7,2.25464346]
[1757824147731,0.3457852,4656.8,4656.7,5.91564346]
[1757824148370,0.0481852,4656.8,4656.7,5.91564346]
[1757824148581,0.0481852,4656.8,4656.7,6.23084346]
[1757824150064,0.0481852,4656.8,4656.7,5.91564346]
[1757824150254,0.0481852,4656.8,4656.7,6.23084346]
[1757824150741,0.0481852,4656.8,4656.7,5.91564346]
[1757824151343,0.0481852,4656.8,4656.7,6.23084346]
[1757824152053,0.0481852,4656.8,4656.7,7.15254346]
[1757824153371,0.0481852,4656.8,4656.7,10.42564168]
[1757824153680,0.0481852,4656.8,4656.7,10.15254346]
[1757824154589,0.0481852,4656.8,4656.7,11.11044168]
[1757824154590,1e-08,4656.8,4656.7,11.11044168]
[1757824154742,0.08,4658.8,4656.7,11.11044168]
[1757824154945,0.4754,4658.5,4657.5,2.14706043]
[1757824155182,0.4399,4658.4,4658.3,2.14669482]
[1757824155487,1.2129,4658.4,4658.3,2.14669482]
[1757824156547,0.3079,4658.4,4658.3,5.80469482]
[1757824156946,0.3079,4658.4,4658.3,3.657]
[1757824156947,1.252,4658.4,4658.3,3.657]
[1757824157334,1.252,4658.4,4658.3,5.80370587]
[1757824157577,1.252,4658.4,4658.3,3.657]
[1757824158074,1.252,4658.4,4658.3,5.80370587]
[1757824158466,0.7839,4658.4,4658.3,5.80370587]
[1757824158856,0.7859,4658.4,4658.3,2.14670587]
[1757824159280,0.3099,4658.4,4658.3,2.14670587]
[1757824159879,0.7859,4658.4,4658.3,2.14670587]
[1757824160093,0.002,4658.4,4658.3,2.93540587]
[1757824160246,0.002,4658.4,4658.3,38.03927292]
[1757824160445,0.002,4658.4,4658.3,39.08290409]
[1757824160843,0.002,4658.4,4658.3,39.19135382]
[1757824161060,0.002,4658.4,4658.3,8.80980587]
[1757824161265,0.7859,4658.4,4658.3,5.80270587]
[1757824161465,1.254,4658.4,4658.3,5.80270587]
[1757824161699,0.3099,4658.4,4658.3,5.80270587]
[1757824162002,0.002,4658.4,4658.3,5.80270587]
[1757824162189,0.002,4658.4,4658.3,5.80170587]
[1757824162502,0.002,4658.4,4658.3,6.11030587]
[1757824163093,0.002,4658.4,4658.3,5.80170587]
[1757824163305,0.002,4658.4,4658.3,6.11030587]
[1757824163503,0.002,4658.4,4658.3,6.54470587]
[1757824164682,0.002,4658.4,4658.3,6.65190587]
[1757824164907,0.3099,4658.4,4658.3,2.25390587]
[1757824165110,1.254,4658.4,4658.3,2.25390587]
[1757824165294,1.254,4658.4,4658.3,5.90790587]
[1757824165679,0.7859,4658.4,4658.3,5.90790587]
[1757824165998,0.3099,4658.4,4658.3,5.90790587]
[1757824166874,0.002,4658.4,4658.3,5.90790587]
[1757824167080,0.002,4658.4,4658.3,6.21650587]
[1757824169084,0.002,4658.4,4658.3,7.13100587]
[1757824169605,0.002,4658.4,4658.3,7.40410409]
[1757824170106,0.002,4658.4,4658.3,6.69660587]
[1757824170307,0.002,4658.4,4658.3,6.21650587]
[1757824171476,0.002,4658.4,4658.3,6.21450587]
[1757824171977,0.002,4658.4,4658.3,6.64890587]
[1757824172397,0.002,4658.4,4658.3,7.12900587]
[1757824172909,0.002,4658.4,4658.3,10.12900587]
[1757824177341,1.254,4658.4,4658.3,0.1072]
[1757824177494,1.254,4658.4,4658.3,5.90490587]
[1757824178336,0.3099,4658.4,4658.3,5.90490587]
[1757824178650,0.002,4658.4,4658.3,5.90490587]
[1757824180134,0.002,4658.4,4658.3,6.21350587]
[1757824181551,0.002,4658.4,4658.3,3.7582]
[1757824181552,0.3099,4658.4,4658.3,3.7582]
[1757824181710,0.7859,4658.4,4658.3,5.90390587]
[1757824181898,1.254,4658.4,4658.3,5.90390587]
[1757824183030,0.7859,4658.4,4658.3,5.90390587]
[1757824183930,0.7859,4658.4,4658.3,5.90290587]
[1757824185727,0.7859,4658.4,4658.3,2.25390587]
[1757824185926,0.7859,4658.4,4658.3,5.90290587]
[1757824187207,0.3099,4658.4,4658.3,2.25390587]
[1757824187410,0.3099,4658.4,4658.3,5.90290587]
[1757824188646,0.002,4658.4,4658.3,5.90290587]
[1757824189145,0.002,4658.4,4658.3,6.65520587]
[1757824189320,0.002,4658.4,4658.3,5.90190587]
[1757824189649,1.2368,4658.4,4658.3,5.90190587]
[1757824189855,0.8071,4658.4,4658.3,2.25390587]
[1757824190145,1.2368,4658.4,4658.3,2.25390587]
[1757824190441,1.2368,4658.4,4658.3,0.1072]
[1757824191018,1.2368,4658.4,4657.7,3.648]
[1757824191261,0.9215,4658.3,4658.1,0.1072]
[1757824191744,0.2982,4658.2,4656.8,3.63092726]
[1757824191946,0.9261,4658.1,4657.8,0.1072]
[1757824192243,0.2982,4657.9,4657.8,0.1072]
[1757824192615,1.2243,4657.9,4657.8,0.1072]
[1757824196546,1.2243,4657.9,4657.2,2.14718966]
[1757824196752,0.2982,4657.9,4657.4,0.1072]
[1757824196977,0.9261,4657.8,4657.4,0.1072]
[1757824197172,0.2982,4657.5,4657.4,0.1072]
[1757824197677,1.2243,4657.5,4657.4,0.1072]
[1757824198078,0.7532,4657.5,4657.4,0.1072]
[1757824200356,1.2243,4657.5,4657.4,0.1072]
[1757824200563,1.2243,4657.5,4656.8,0.001]
[1757824200759,1.2243,4657.5,4656.9,0.1072]
[1757824201162,1.2243,4657.5,4656.9,2.25454668]
[1757824201363,0.9261,4657.4,4656.9,0.1072]
[1757824201968,0.2982,4657.0,4656.8,0.001]
[1757824203194,1.647,4657.5,4657.0,2.14730513]
[1757824203393,0.4711,4658.1,4657.4,0.3089]
[1757824203394,0.9261,4658.1,4657.4,0.3089]
[1757824203558,4.5711,4658.1,4657.4,0.3089]
[1757824204194,1.647,4658.2,4657.4,0.3089]
[1757824204396,1.647,4658.2,4657.5,2.58927461]
[1757824204565,1.647,4658.2,4657.6,0.02147028]
[1757824204766,0.002,4658.4,4657.8,2.14692272]
[1757824205102,0.2982,4657.6,4657.4,3.645]
[1757824205474,0.4711,4658.2,4657.5,0.3089]
[1757824205669,0.455,4658.3,4657.7,2.1469779]
[1757824206503,0.455,4658.3,4657.6,2.14699873]
[1757824206666,0.455,4658.3,4657.5,2.1470661]
[1757824207008,0.4711,4658.2,4657.3,2.14714713]
[1757824207298,0.9261,4658.3,4657.6,2.14698446]
[1757824207499,0.455,4658.3,4657.2,0.4877]
[1757824207702,0.002,4658.4,4657.9,2.14688493]
[1757824208003,0.002,4658.4,4658.0,2.14682976]
[1757824208167,0.002,4658.4,4657.8,2.1469176]
[1757824208766,0.002,4658.4,4657.9,2.14689013]
[1757824209001,0.002,4658.4,4657.7,2.58914588]
[1757824209197,0.002,4658.4,4657.8,2.14692487]
[1757824209365,0.002,4658.4,4657.9,2.14688884]
[1757824209566,0.002,4658.4,4658.0,2.14683952]
[1757824209770,0.002,4658.4,4657.7,0.95136982]
[1757824210001,0.002,4658.4,4658.3,0.3089]
[1757824210415,0.002,4658.4,4658.3,2.89780587]
[1757824210602,0.002,4658.4,4658.3,3.38550587]
[1757824210801,0.002,4658.4,4658.3,2.45560587]
[1757824211015,0.3002,4658.4,4658.0,2.14684413]
[1757824211317,0.3002,4658.4,4657.9,0.4422]
[1757824211617,0.002,4658.4,4658.2,2.14672456]
[1757824211819,0.002,4658.3,4658.2,2.14672456]
[1757824211984,0.002,4658.3,4658.2,2.45562456]
[1757824212185,0.002,4658.3,4658.2,2.56282456]
[1757824212482,0.002,4658.3,4658.2,2.56285196]
[1757824212681,0.002,4658.3,4658.2,3.00505196]
[1757824213484,0.002,4658.3,4658.2,3.49275196]
[1757824213987,0.002,4658.3,4658.2,2.25395196]
[1757824214384,0.002,4658.3,4658.2,3.05055196]
[1757824214686,0.002,4658.3,4658.2,2.56285196]
[1757824215103,0.002,4658.3,4658.2,3.00505196]
[1757824215301,0.002,4658.3,4658.2,3.49275196]
[1757824217016,0.002,4658.3,4658.2,4.30621947]
[1757824217221,0.002,4658.3,4658.2,4.28475196]
[1757824217524,0.002,4658.3,4658.2,7.28475196]
[1757824220035,0.002,4658.3,4658.2,10.92675196]
[1757824220736,1e-08,4658.4,4658.3,5.14670587]
[1757824221033,1e-08,4658.4,4658.3,6.08870587]
[1757824221239,1e-08,4658.4,4658.3,6.38960587]
[1757824222105,1e-08,4658.4,4658.3,7.18160587]
[1757824222738,1e-08,4658.8,4658.7,2.93852156]
[1757824223039,1e-08,4658.8,4658.7,6.60098677]
[1757824223335,1e-08,4658.8,4658.7,7.92962156]
[1757824223539,1e-08,4658.8,4658.7,8.57348612]
[1757824225042,1e-08,4658.8,4658.7,11.84658434]
[1757824225418,1e-08,4658.8,4658.7,12.26571685]
[1757824226379,1e-08,4658.8,4658.7,42.26571685]
[1757824228155,1e-08,4658.8,4658.7,38.35161863]
[1757824228466,1e-08,4658.8,4658.7,41.99161863]
[1757824229458,1e-08,4658.8,4658.7,42.26471685]
[1757824230334,1e-08,4658.8,4658.7,37.38181685]
[1757824230668,1e-08,4658.8,4658.7,9.95571863]
[1757824230837,1e-08,4658.8,4658.7,6.31671863]
[1757824231039,1e-08,4658.8,4658.7,10.74771863]
[1757824231458,1e-08,4658.8,4658.7,8.89272156]
[1757824231644,0.28700001,4658.8,4658.7,8.89272156]
[1757824231844,0.28700001,4658.8,4658.7,9.68472156]
[1757824232047,0.77130001,4658.8,4658.7,6.04572156]
[1757824232248,1.20220001,4658.8,4658.7,9.68372156]
[1757824232891,1.20220001,4658.8,4658.7,2.25372156]
[1757824233081,1.20220001,4658.8,4658.7,5.89172156]
[1757824233772,0.77130001,4658.8,4658.7,5.89172156]
[1757824234686,0.28700001,4658.8,4658.7,5.89172156]
[1757824234886,1e-08,4658.8,4658.7,10.73461978]
[1757824236190,1e-08,4658.8,4658.7,10.46152156]
[1757824236408,1e-08,4658.8,4658.7,9.98932156]
[1757824236885,1e-08,4658.8,4658.7,10.46152156]
[1757824237054,1e-08,4658.8,4658.7,10.93892156]
[1757824237258,1e-08,4658.8,4658.7,11.21201978]
[1757824237660,1e-08,4658.8,4658.7,41.10481978]
[1757824237878,1e-08,4658.8,4658.7,37.46681978]
[1757824238080,1e-08,4658.8,4658.7,41.10381978]
[1757824241580,0.002,4659.3,4659.2,2.9382912]
[1757824241883,0.002,4659.3,4659.2,11.51685233]
[1757824242083,0.002,4659.3,4659.2,12.75058942]
[1757824242795,0.002,4659.3,4659.2,13.39435865]
[1757824243790,1.377,4661.9,4660.7,2.14560044]
[1757824243990,2.14509964,4661.8,4660.7,2.14560044]
[1757824244198,0.367,4660.8,4660.7,2.14560044]
[1757824244390,1.2822,4660.8,4660.7,2.14560044]
[1757824247613,1.2822,4660.8,4660.7,2.25280044]
[1757824248510,1.2842,4660.8,4660.7,2.25280044]
[1757824249586,1.2842,4660.8,4660.7,5.88780044]
[1757824250492,1.2842,4660.8,4660.7,5.88680044]
[1757824250695,1.3133,4660.8,4660.7,5.88680044]
[1757824250997,0.8565,4660.8,4660.7,5.88680044]
[1757824251182,0.8565,4660.8,4660.7,2.25280044]
[1757824251379,0.8565,4660.8,4660.7,5.88680044]
[1757824251820,1.3256,4660.8,4660.7,5.88680044]
[1757824253020,1.3256,4660.8,4660.7,2.25280044]
[1757824253220,1.3256,4660.8,4660.7,5.88680044]
[1757824255116,1.3256,4660.8,4660.7,2.25280044]
[1757824255338,1.3256,4660.8,4660.7,5.88580044]
[1757824256810,1.3256,4660.8,4660.7,0.1072]
[1757824260938,1.3256,4660.8,4659.5,0.4714]
[1757824260939,1.3256,4660.8,4659.4,0.64376785]
[1757824261138,1.3256,4660.8,4660.1,0.1072]
[1757824261139,3.08760044,4660.7,4660.1,0.1072]
[1757824261644,0.3128,4660.2,4660.1,0.1072]
[1757824262148,1.2548,4660.2,4660.1,0.1072]
[1757824262521,1.2548,4660.2,4659.8,0.1072]
[1757824264508,0.4691,4660.1,4659.8,0.1072]
[1757824264705,2.61498279,4660.1,4659.8,0.1072]
[1757824264931,0.3128,4659.9,4659.8,0.1072]
[1757824265442,1.2548,4659.9,4659.8,0.1072]
[1757824265820,0.7857,4659.9,4659.8,0.1072]
[1757824266138,1.2548,4659.9,4659.8,0.1072]
[1757824266309,0.4729,4660.3,4659.8,0.1072]
[1757824266507,0.942,4660.2,4659.8,0.1072]
[1757824266711,0.3128,4659.9,4659.8,0.1072]
[1757824267452,0.3128,4659.9,4659.8,0.1082]
[1757824269215,0.4729,4660.1,4659.8,0.1082]
[1757824269418,0.4691,4660.4,4659.8,0.43226014]
[1757824269639,0.4729,4660.5,4660.0,2.14588999]
[1757824269843,0.4729,4660.5,4660.1,0.1072]
[1757824270157,0.942,4660.5,4660.2,2.14582082]
[1757824270393,0.3128,4660.3,4660.1,0.1072]
[1757824270552,0.1892,4660.8,4659.8,0.02246014]
[1757824270553,0.082,4660.8,4660.4,2.25293746]
[1757824270750,0.082,4660.8,4660.4,0.1072]
[1757824271152,0.3128,4660.5,4660.4,0.1072]
[1757824272099,0.082,4660.8,4660.4,0.4098]
[1757824272391,0.082,4660.8,4660.5,0.4714]
[1757824272588,0.082,4660.8,4660.7,0.1072]
[1757824272750,0.082,4660.8,4660.7,0.4098]
[1757824272947,0.082,4660.8,4660.7,2.55540044]
[1757824273154,0.082,4660.8,4660.7,0.4098]
[1757824273696,0.082,4660.8,4660.7,2.55540044]
[1757824274953,0.082,4660.8,4660.7,0.4098]
[1757824275151,0.082,4660.8,4660.7,0.1072]
[1757824276570,0.3962,4660.8,4660.7,0.1072]
[1757824276774,1.3148,4660.8,4660.7,0.1072]
[1757824277666,0.3962,4660.8,4660.7,0.1072]
[1757824280067,0.3962,4660.8,4660.7,2.25280044]
[1757824280295,0.082,4660.8,4660.7,2.25280044]
[1757824280499,0.082,4660.8,4660.7,0.1072]
[1757824280678,0.3962,4660.8,4660.7,0.1072]
[1757824281012,0.082,4660.8,4660.7,2.55480044]
[1757824282302,0.082,4660.8,4660.7,2.99030044]
[1757824283615,0.082,4660.8,4660.7,2.55480044]
[1757824283975,0.082,4660.8,4660.7,2.99030044]
[1757824284714,0.082,4660.8,4660.7,0.4092]
[1757824285282,0.082,4660.8,4660.7,0.1072]
[1757824285594,0.3962,4660.8,4660.7,0.1072]
[1757824285794,0.082,4660.8,4660.7,0.1072]
[1757824286010,0.082,4660.8,4660.7,2.55480044]
[1757824286312,0.082,4660.8,4660.7,2.99030044]
[1757824287565,0.082,4660.8,4660.7,0.4092]
[1757824287770,0.082,4660.8,4660.7,0.1072]
[1757824287969,0.3962,4660.8,4660.7,0.1072]
[1757824288471,0.082,4660.8,4660.7,0.4092]
[1757824288667,0.082,4660.8,4660.7,2.99030044]
[1757824289206,0.082,4660.8,4660.7,3.45450044]
[1757824289414,0.082,4660.8,4660.7,7.08150044]
[1757824291071,0.082,4660.8,4660.7,7.72518402]
[1757824291995,0.082,4660.8,4660.7,7.26098402]
[1757824293514,0.8619,4660.8,4660.7,5.87880044]
[1757824293706,1.3148,4660.8,4660.7,5.87880044]
[1757824293909,0.8619,4660.8,4660.7,5.87880044]
[1757824294110,0.3962,4660.8,4660.7,5.87880044]
[1757824294416,0.082,4660.8,4660.7,5.87880044]
[1757824294823,0.3962,4660.8,4660.7,3.7332]
[1757824294987,0.8619,4660.8,4660.7,0.1072]
[1757824295188,1.3148,4660.8,4660.7,0.1072]
[1757824296588,0.8619,4660.8,4660.7,0.1072]
[1757824296818,1.3148,4660.8,4660.7,0.1072]
[1757824298019,0.082,4660.8,4660.7,0.4092]
[1757824298503,0.082,4660.8,4660.7,0.1072]
[1757824299220,0.3962,4660.8,4660.7,0.1072]
[1757824300224,1.3148,4660.8,4660.7,0.1072]
[1757824300629,1.3148,4660.8,4659.8,0.001]
[1757824300930,1.3148,4660.8,4660.0,0.1072]
[1757824300931,3.56758216,4660.8,4660.0,0.1072]
[1757824301115,2.14560044,4660.7,4660.0,0.1072]
[1757824301295,2.14560044,4660.7,4659.9,3.624]
[1757824301296,2.14583376,4660.2,4659.8,0.001]
[1757824301498,0.3142,4659.9,4659.8,0.001]
[1757824301916,1.2328,4659.9,4659.8,0.001]
[1757824303705,3.37876879,4659.9,4659.8,0.001]
[1757824304112,6.26768055,4659.9,4659.8,0.001]
[1757824304722,3.48596879,4659.9,4659.8,0.001]
[1757824305312,6.26768055,4659.9,4659.8,0.001]
[1757824305897,9.47924155,4659.9,4659.8,0.001]
[1757824306430,9.5651261,4659.9,4659.8,0.001]
[1757824306801,10.20808534,4659.9,4659.8,0.001]
[1757824308247,6.46465334,4659.9,4659.8,0.001]
[1757824308455,10.00276879,4659.9,4659.8,0.001]
[1757824310155,12.78448055,4659.9,4659.8,0.001]
[1757824311052,5.92586879,4659.9,4659.8,0.001]
[1757824311254,9.54986879,4659.9,4659.8,0.001]
[1757824311422,9.98456879,4659.9,4659.8,0.001]
[1757824312033,3.624,4659.9,4659.8,0.2992]
[1757824312657,0.9272,4660.5,4659.8,0.2992]
[1757824312835,2.1456978,4660.5,4659.8,0.7548]
[1757824313158,3.623,4660.4,4659.8,0.7548]
[1757824313757,3.623,4660.4,4659.8,0.2992]
[1757824313960,2.14578534,4660.3,4659.8,0.2992]
[1757824314258,3.623,4660.4,4659.8,0.2992]
[1757824314560,0.3025,4659.9,4659.8,0.001]
[1757824314756,3.623,4659.9,4659.8,0.001]
[1757824315774,3.623,4659.9,4659.8,0.3148]
[1757824316567,3.623,4659.9,4659.8,0.7704]
[1757824319268,3.623,4659.9,4659.8,0.3148]
[1757824319468,3.623,4659.9,4659.8,0.001]
[1757824319776,3.9255,4659.9,4659.8,0.001]
[1757824320156,3.623,4659.9,4659.8,0.001]
[1757824320569,3.623,4659.9,4659.8,0.3148]
[1757824321277,3.623,4659.9,4659.8,0.001]
[1757824321278,3.9255,4659.9,4659.8,0.001]
[1757824322047,3.623,4659.9,4659.8,0.3148]
[1757824322557,3.623,4659.9,4659.8,0.7704]
[1757824322753,3.625,4659.9,4659.8,0.7704]
[1757824323651,3.625,4659.9,4659.8,0.001]
[1757824323948,3.9275,4659.9,4659.8,0.001]
[1757824325284,4.8511,4659.9,4659.8,0.001]
[1757824325672,1.2281,4659.9,4659.8,0.001]
[1757824325892,4.8501,4659.9,4659.8,0.001]
[1757824326461,4.3999,4659.9,4659.8,0.001]
[1757824326660,3.9265,4659.9,4659.8,0.001]
[1757824328192,3.624,4659.9,4659.8,0.3148]
[1757824328490,3.624,4659.9,4659.8,1.2438]
[1757824329488,0.002,4659.9,4659.8,1.2438]
[1757824330411,0.002,4659.9,4659.8,3.41127499]
[1757824330615,0.002,4659.9,4659.8,3.38981485]
[1757824332787,0.002,4659.9,4659.8,6.38981485]
[1757824335006,0.002,4659.9,4659.8,7.18181485]
[1757824340423,0.002,4659.9,4659.8,7.28901485]
[1757824340611,0.002,4659.9,4659.8,10.90801485]
[1757824342926,0.002,4659.9,4659.8,10.89351485]
[1757824343230,0.002,4659.9,4659.8,10.97934264]
[1757824344128,0.002,4659.9,4659.8,10.06384264]
[1757824344897,0.002,4659.9,4659.8,10.50494264]
[1757824345533,0.002,4659.9,4659.8,10.06384264]
[1757824346069,0.002,4659.9,4659.8,6.44584264]
[1757824346242,0.002,4659.9,4659.8,10.06384264]
[1757824347063,0.002,4659.9,4659.8,10.98314264]
[1757824349180,0.002,4659.9,4659.8,7.36514264]
[1757824349372,0.002,4659.9,4659.8,10.98214264]
[1757824351843,0.002,4659.9,4659.8,9.74904264]
[1757824352453,0.002,4659.9,4659.8,10.48344264]
[1757824354182,0.002,4659.9,4659.8,10.85444264]
[1757824354385,0.002,4659.9,4659.8,10.96164264]
[1757824357696,0.002,4660.4,4660.3,5.9377846]
[1757824357854,0.002,4660.4,4660.3,9.5527846]
[1757824358060,0.002,4660.4,4660.3,10.8725846]
[1757824359049,0.002,4660.4,4660.3,11.3507846]
[1757824359454,0.002,4660.4,4660.3,10.8725846]
[1757824360290,0.002,4660.4,4660.3,10.4314846]
[1757824361166,0.002,4660.4,4660.3,5.7311846]
[1757824361167,0.7967,4660.4,4660.3,5.7311846]
[1757824361366,1.2437,4660.4,4660.3,5.2529846]
[1757824361596,1.2437,4660.4,4660.3,8.8679846]
[1757824361904,1.2437,4660.4,4660.3,5.8679846]
[1757824362107,1.2437,4660.4,4660.3,3.7222]
[1757824362908,1.2437,4660.4,4660.3,0.1072]
[1757824363121,1.2437,4660.4,4660.0,0.1072]
[1757824364278,1.2437,4660.4,4659.8,0.001]
[1757824364509,2.1457846,4660.3,4659.8,0.001]
[1757824364713,1.3509,4660.4,4659.8,0.001]
[1757824365013,0.3165,4659.9,4659.8,0.001]
[1757824365413,1.2417,4659.9,4659.8,0.001]
[1757824368244,3.38766879,4659.9,4659.8,0.001]
[1757824370119,1.2417,4659.9,4659.8,0.001]
[1757824373320,0.3165,4659.9,4659.8,0.001]
[1757824373632,0.1072,4660.1,4659.8,0.001]
[1757824373949,0.3083,4659.9,4659.8,0.001]
[1757824374809,1.646,4660.2,4659.8,0.001]
[1757824375210,2.582,4660.2,4659.8,0.001]
[1757824375629,0.3083,4659.9,4659.8,0.001]
[1757824376328,0.7886,4659.9,4659.8,0.001]
[1757824378065,1.646,4660.2,4659.8,0.001]
[1757824378760,2.582,4660.2,4659.8,0.001]
[1757824380435,0.3083,4659.9,4659.8,0.001]
[1757824381337,1.646,4660.2,4659.8,0.001]
[1757824381537,1.646,4660.2,4659.8,0.288]
[1757824381757,1.646,4660.2,4659.8,2.43401485]
[1757824381966,1.646,4660.2,4659.8,2.4340085]
[1757824382196,0.002,4660.4,4660.1,2.14587669]
[1757824382474,0.002,4660.4,4659.9,0.9285]
[1757824382475,0.002,4660.4,4660.3,0.1072]
[1757824382678,0.4823,4660.4,4660.3,0.1072]
[1757824382980,0.7906,4660.4,4660.3,0.1072]
[1757824383208,1.2463,4660.4,4660.3,0.1072]
[1757824383587,1.2463,4660.4,4659.8,0.001]
[1757824383913,1.2463,4660.4,4659.8,0.1082]
[1757824384134,3.39204681,4660.4,4659.8,0.1082]
[1757824384307,1.2463,4660.4,4659.8,0.1082]
[1757824384478,1.2463,4660.4,4659.8,2.25421006]
[1757824384990,1.2463,4660.4,4659.8,0.1082]
[1757824387228,0.002,4660.4,4659.9,0.1072]
[1757824387400,0.002,4660.4,4660.3,0.287]
[1757824387800,0.002,4660.4,4660.1,2.14586652]
[1757824388344,0.002,4660.4,4660.2,2.14581865]
[1757824388510,0.002,4660.4,4660.3,2.4327846]
[1757824388710,0.002,4660.4,4660.3,2.9999846]
[1757824389218,0.002,4660.4,4660.3,2.5399846]
[1757824389420,0.002,4660.4,4660.3,3.4684846]
[1757824389823,0.002,4660.4,4660.3,0.3942]
[1757824390735,0.002,4660.4,4660.3,2.5399846]
[1757824391043,0.002,4660.4,4660.3,0.3942]
[1757824391924,0.002,4660.4,4660.3,2.5399846]
[1757824392740,0.002,4660.4,4660.3,0.3942]
[1757824394412,0.002,4660.4,4660.3,2.5399846]
[1757824396050,0.002,4660.4,4660.3,0.3942]
[1757824397440,0.002,4660.4,4660.3,0.1072]
[1757824398764,0.7585,4660.4,4660.3,0.1072]
[1757824398938,0.7585,4660.4,4659.8,0.001]
[1757824398939,2.14596879,4659.9,4659.8,0.001]
[1757824399262,3.79196879,4659.9,4659.8,0.001]
[1757824399565,4.99236879,4659.9,4659.8,0.001]
[1757824399726,5.07824412,4659.9,4659.8,0.001]
[1757824399911,8.19807388,4659.9,4659.8,0.001]
[1757824400110,14.07379387,4659.9,4659.8,0.001]
[1757824400526,11.99379387,4659.9,4659.8,0.001]
[1757824400741,12.20741552,4659.9,4659.8,0.001]
[1757824401968,8.59741552,4659.9,4659.8,0.001]
[1757824402172,12.00769924,4659.9,4659.8,0.001]
[1757824403272,0.48922536,4659.9,4659.8,0.001]
[1757824403450,0.4669,4660.3,4659.8,0.2923]
[1757824403655,0.002,4660.4,4659.8,0.2923]
[1757824403656,3.61,4660.2,4659.8,0.2923]
[1757824404056,3.61,4660.2,4659.8,0.7345]
[1757824404368,3.61,4660.1,4659.9,0.4422]
[1757824404545,3.61,4660.1,4660.0,0.2913]
[1757824405620,0.002,4660.4,4660.0,1.2117]
[1757824405621,3.61,4660.3,4660.0,1.2117]
[1757824405745,3.61,4660.3,4660.1,0.4422]
[1757824405946,3.61,4660.3,4660.0,0.2913]
[1757824407573,0.2896,4660.1,4659.8,0.001]
[1757824411384,3.61,4660.0,4659.8,0.001]
[1757824413201,3.6091417,4660.0,4659.8,0.001]
[1757824413686,0.2896,4659.9,4659.8,0.001]
[1757824413892,1.2004,4659.9,4659.8,0.001]
[1757824417966,3.34636879,4659.9,4659.8,0.001]
[1757824419102,0.7565,4659.9,4659.8,0.001]
[1757824420208,3.34636879,4659.9,4659.8,0.001]
[1757824421331,1.2004,4659.9,4659.8,0.001]
[1757824421630,0.7565,4659.9,4659.8,0.001]